fUSD/lending_fUSD_20250517
["ID","MTS","AMOUNT","RATE_DAILY","PERIOD"]
[361365196,1747516262222,-317.33088799,0.00041,41]
[361365197,1747516262233,-15387.176328,0.00041,5]
[361365198,1747516262246,-22953.04278254,0.00041,5]
[361365199,1747516262257,-510.27689569,0.00041,120]
[361365200,1747516262269,-150.0,0.00041,10]
[361365201,1747516262280,-244.89923,0.00041,120]
[361365202,1747516262291,-187.55818425,0.00041,30]
[361365203,1747516262302,-1829.24113603,0.00041,120]
[361365204,1747516262435,-151.0,0.000248,7]
[361365205,1747516262447,-242.017507,0.000248,7]
[361365206,1747516262458,-242.017507,0.000249,7]
[361365207,1747516262470,-151.0,0.000266,7]
[361365208,1747516262481,-300.0,0.00027397,2]
[361365209,1747516262493,-151.0,0.00031,7]
[361365210,1747516262504,-242.017507,0.00031,7]
[361365211,1747516262516,-242.017507,0.00039452,14]
[361365212,1747516262527,-151.0,0.00039452,14]
[361365213,1747516262538,-242.017507,0.0004,14]
[361365214,1747516262550,-151.0,0.0004,14]
[361365215,1747516262561,-170.75948509,0.00041,120]
[361365216,1747516262575,-177.2747,0.00041,120]
[361365217,1747516263511,-7864.7922799,0.00041,120]
[361365218,1747516263542,-318.6349995,0.00041,120]
[361365219,1747516263582,-242.017507,0.00039452,14]
[361365220,1747516263600,-1816.5727206,0.00041,120]
[361365221,1747516263610,-747.0,0.00041,60]
[361365222,1747516263619,-2568.1393847,0.00041,120]
[361365223,1747516263630,-3059.71174369,0.00041,120]
[361365224,1747516263639,-343.33867412,0.00041,90]
[361365225,1747516263648,-2837.67301709,0.00041,45]
[361365249,1747517109747,-228.85556636,0.00014,2]
[361365250,1747517111539,-229.67875596,0.00014,2]
[361365251,1747517115267,-231.06477113,0.00014,2]
[361365252,1747517116718,-156.62299645,0.00014,2]
[361365253,1747517118824,-153.7779101,0.00014,2]
[361365254,1747517120923,4004.61918786,9e-05,2]
[361365255,1747517121544,-165.39,0.00014,2]
[361365256,1747517123551,-187.876677,0.00014,2]
[361365258,1747517125526,-171.80959781,0.00014,2]
[361365259,1747517130326,-181.56026312,0.00014,2]
[361365260,1747517133960,-249.89013907,0.00014,2]
[361365264,1747517263635,-500.0,0.00013999,2]
[361365265,1747517263662,-500.0,0.00013999,2]
[361365266,1747517263686,-500.0,0.00013999,2]
[361365267,1747517263711,-411.717,0.00013999,2]
[361365268,1747517274332,2939.2671328,0.0001,2]
[361365269,1747517282995,-88.283,0.00013999,2]
[361365270,1747517283023,-61.717,0.00013999,2]
[361365271,1747517311763,216.97501392,0.0001,2]
[361365272,1747517317037,-150.0,0.00013699,2]
[361365354,1747517437930,-52.26,0.00013699,2]
[361365355,1747517437941,-173.96515183,0.000139,2]
[361365356,1747517437951,-500.0,0.00013999,2]
[361365357,1747517437960,-500.0,0.00013999,2]
[361365358,1747517437969,-500.0,0.00013999,2]
[361365359,1747517437978,-500.0,0.00013999,2]
[361365360,1747517437987,-500.0,0.00013999,2]
[361365361,1747517437996,-500.0,0.00013999,2]
[361365362,1747517438005,-500.0,0.00013999,2]
[361365363,1747517438014,-500.0,0.00013999,2]
[361365364,1747517438023,-500.0,0.00013999,2]
[361365365,1747517438032,-500.0,0.00013999,2]
[361365366,1747517438041,-500.0,0.00013999,2]
[361365367,1747517438050,-500.0,0.00013999,2]
[361365368,1747517438059,-158.64382256,0.00013999,2]
[361365369,1747517438068,-500.0,0.00013999,2]
[361365370,1747517438078,-500.0,0.00013999,2]
[361365371,1747517438087,-500.0,0.00013999,2]
[361365372,1747517438096,-500.0,0.00013999,2]
[361365373,1747517438105,-500.0,0.00013999,2]
[361365375,1747517438114,-99.58224953,0.00013999,2]
[361365382,1747517438166,-0.00295486,0.00013999,2]
[361365435,1747517439859,-220.08821507,0.000139,2]
[361365436,1747517439869,-400.41479561,0.00013999,2]
[361365437,1747517439878,-209.44512927,0.00013999,2]
[361365438,1747517439890,-290.55487073,0.00013999,2]
[361365439,1747517439899,-500.0,0.00013999,2]
[361365440,1747517439908,-500.0,0.00013999,2]
[361365441,1747517439917,-500.0,0.00013999,2]
[361365442,1747517439928,-500.0,0.00013999,2]
[361365443,1747517439938,-500.0,0.00013999,2]
[361365444,1747517439948,-331.31316517,0.00013999,2]
[361365445,1747517439960,-168.68683483,0.00013999,2]
[361365446,1747517439970,-225.51516612,0.00013999,2]
[361365447,1747517439983,-274.48483388,0.00013999,2]
[361365448,1747517439994,-500.0,0.00013999,2]
[361365449,1747517440005,-500.0,0.00013999,2]
[361365450,1747517440017,-500.0,0.00013999,2]
[361365451,1747517440028,-500.0,0.00013999,2]
[361365452,1747517440038,-500.0,0.00013999,2]
[361365453,1747517440048,-500.0,0.00013999,2]
[361365454,1747517440059,-500.0,0.00013999,2]
[361365455,1747517440069,-500.0,0.00013999,2]
[361365456,1747517440079,-500.0,0.00013999,2]
[361365457,1747517440089,-500.0,0.00013999,2]
[361365458,1747517440098,-500.0,0.00013999,2]
[361365459,1747517440108,-500.0,0.00013999,2]
[361365460,1747517440117,-500.0,0.00013999,2]
[361365461,1747517440127,-500.0,0.00013999,2]
[361365462,1747517440136,-500.0,0.00013999,2]
[361365463,1747517440146,-500.0,0.00013999,2]
[361365464,1747517440155,-500.0,0.00013999,2]
[361365465,1747517440164,-500.0,0.00013999,2]
[361365466,1747517440174,-500.0,0.00013999,2]
[361365467,1747517440184,-500.0,0.00013999,2]
[361365468,1747517440194,-500.0,0.00013999,2]
[361365469,1747517440204,-500.0,0.00013999,2]
[361365470,1747517440213,-500.0,0.00013999,2]
[361365472,1747517440223,-240.28801458,0.00013999,2]
[361365475,1747517440235,-259.71198542,0.00013999,2]
[361365476,1747517440244,-500.0,0.00013999,2]
[361365478,1747517440254,-500.0,0.00013999,2]
[361365480,1747517440263,-500.0,0.00013999,2]
[361365482,1747517440273,-338.67641458,0.00013999,2]
[361365484,1747517440284,-161.32358542,0.00013999,2]
[361365486,1747517440294,-500.0,0.00013999,2]
[361365488,1747517440303,-286.40587458,0.00013999,2]
[361365501,1747517440419,-10.68373175,0.00013999,2]
[361365503,1747517440430,-202.91039367,0.00013999,2]
[361365505,1747517440440,-500.0,0.00013999,2]
[361365507,1747517440449,-500.0,0.00013999,2]
[361365509,1747517440459,-202.5265621,0.00013999,2]
[361365511,1747517440468,-500.0,0.00013999,2]
[361365513,1747517440478,-500.0,0.00013999,2]
[361365515,1747517440487,-500.0,0.00013999,2]
[361365517,1747517440496,-500.0,0.00013999,2]
[361365519,1747517440506,-500.0,0.00013999,2]
[361365521,1747517440515,-500.0,0.00013999,2]
[361365523,1747517440525,-4880.23707753,0.00014,2]
[361365526,1747517440539,-8542.713982,0.00014,2]
[361365528,1747517440551,-4121.0976,0.00014,2]
[361365530,1747517440562,-10459.08672348,0.00014,2]
[361365537,1747517442253,150.0,0.000135,5]
[361365538,1747517443063,-665.159998,0.00014,2]
[361365539,1747517443085,-892.0,0.00014,2]
[361365540,1747517443098,-500.0,0.00014,2]
[361365541,1747517443110,-11691.22063492,0.00014,2]
[361365568,1747517446088,-31131.6881264,0.00014,2]
[361365897,1747518544874,278.97,0.00026414,120]
[361365908,1747518631962,-190.595,0.0001372,2]
[361365909,1747518631976,-250.0,0.0001372,2]
[361365910,1747518631986,-1637.098,0.0001372,2]
[361365911,1747518631995,-1200.0,0.00013898,2]
[361365912,1747518632005,-300.0,0.00013898,2]
[361365913,1747518632015,-150.0,0.00013899,2]
[361365914,1747518632024,-9178.51541283,0.00013899,2]
[361365915,1747518632035,-520.99522456,0.00013899,2]
[361365916,1747518632045,-178.15918207,0.000139,2]
[361365917,1747518632056,-179.87312758,0.000139,2]
[361365918,1747518632066,-188.69227093,0.000139,2]
[361365919,1747518632076,-186.45876468,0.000139,2]
[361365920,1747518632086,-9667.60521716,0.000139,2]
[361365921,1747518632095,-192.57718823,0.000139,2]
[361365922,1747518632104,-161.6410487,0.000139,2]
[361365923,1747518632114,-253.19611468,0.000139,2]
[361365924,1747518632123,-500.0,0.00013973,2]
[361365925,1747518632133,-500.0,0.00013973,2]
[361365926,1747518632144,-350.96042473,0.00013998,2]
[361365927,1747518632153,-508.23648847,0.00013999,2]
[361365928,1747518632163,-325072.55262989,0.00013999,2]
[361365929,1747518632176,-556.26072989,0.00013999,2]
[361365930,1747518632187,-116595.04130841,0.00013999,2]
[361365931,1747518632198,-43592.78669534,0.00013999,2]
[361365932,1747518632209,-1825.97479114,0.00013999,2]
[361365933,1747518632220,-291.42,0.00013999,2]
[361365934,1747518632231,-430.25086577,0.00013999,2]
[361365935,1747518632243,-4409.5256333,0.00013999,2]
[361365936,1747518632255,-4297.54566169,0.00013999,2]
[361365938,1747518632266,-1800.0,0.00013999,2]
[361365939,1747518632291,-5631.21966337,0.00013999,2]
[361365940,1747518632303,-4906.28337191,0.00013999,2]
[361365941,1747518632315,-929.25693706,0.00013999,2]
[361365942,1747518632326,-383.12875825,0.00013999,2]
[361365943,1747518632342,-1231.85132041,0.00013999,2]
[361365944,1747518632353,-578.59140228,0.00013999,2]
[361365945,1747518632364,-13138.44444635,0.00013999,2]
[361365946,1747518632375,-415.87469936,0.00013999,2]
[361366147,1747518639264,-199.67,0.00013699,2]
[361366149,1747518639274,-500.0,0.00013999,2]
[361366151,1747518639283,-500.0,0.00013999,2]
[361366153,1747518639292,-500.0,0.00013999,2]
[361366155,1747518639301,-500.0,0.00013999,2]
[361366157,1747518639310,-500.0,0.00013999,2]
[361366159,1747518639319,-500.0,0.00013999,2]
[361366161,1747518639328,-500.0,0.00013999,2]
[361366163,1747518639337,-500.0,0.00013999,2]
[361366165,1747518639346,-500.0,0.00013999,2]
[361366167,1747518639356,-500.0,0.00013999,2]
[361366169,1747518639365,-500.0,0.00013999,2]
[361366171,1747518639374,-500.0,0.00013999,2]
[361366173,1747518639383,-500.0,0.00013999,2]
[361366175,1747518639393,-500.0,0.00013999,2]
[361366177,1747518639403,-500.0,0.00013999,2]
[361366179,1747518639412,-500.0,0.00013999,2]
[361366181,1747518639421,-231.4912707,0.00013999,2]
[361366183,1747518639433,-268.5087293,0.00013999,2]
[361366185,1747518639443,-500.0,0.00013999,2]
[361366187,1747518639452,-500.0,0.00013999,2]
[361366189,1747518639461,-500.0,0.00013999,2]
[361366191,1747518639471,-500.0,0.00013999,2]
[361366193,1747518639480,-246.15528435,0.00013999,2]
[361366195,1747518639490,-500.0,0.00013999,2]
[361366197,1747518639499,-21929.68022147,0.00013999,2]
[361366199,1747518639510,-26536.75640405,0.00013999,2]
[361366201,1747518639524,-534.82997,0.00013999,2]
[361366203,1747518639535,-519.750011,0.00013999,2]
[361366206,1747518639545,-1068.21900387,0.00013999,2]
[361366208,1747518639556,-349.03655998,0.00013999,2]
[361366210,1747518639568,-3885.55859282,0.00013999,2]
[361366212,1747518639580,-100676.27753627,0.00013999,2]
[361366214,1747518639589,-467645.30809761,0.00014,2]
[361366216,1747518639599,-424.90353163,0.00014,2]
[361366220,1747518639625,-30353.22962157,0.00014,2]
[361366266,1747518640075,-2200.0,0.00014,2]
[361366269,1747518640088,-561.74801864,0.00014,2]
[361366274,1747518640132,-1296.07236864,0.00014,2]
[361366277,1747518640144,-8349.9999995,0.00014,2]
[361366287,1747518640244,-552.84548705,0.00014,2]
[361366290,1747518640305,-19816.92653172,0.00014,2]
[361366291,1747518640316,-645.06897005,0.00014,2]
[361366292,1747518640327,-286.29332328,0.00014,2]
[361366293,1747518640338,-758.86076867,0.00014,2]
[361366294,1747518640350,-1956.65,0.00014,2]
[361366295,1747518640414,-2623551.98577402,0.00014,2]
[361366296,1747518640424,-142385.813387,0.00014,2]
[361366297,1747518640435,-7269.50786174,0.00014,2]
[361366299,1747518640447,-11104.40000003,0.00014,2]
[361366302,1747518640458,-18577.6464,0.00014,2]
[361366304,1747518640469,-8064.3617255,0.00014,2]
[361366306,1747518640480,-16334.38412226,0.00014,2]
[361366365,1747518643140,-557.084731,0.00014,2]
[361366366,1747518643194,-18423.47796438,0.00014,2]
[361366367,1747518643304,-5972.32283216,0.00014,2]
[361366427,1747518646212,-1142.80360592,0.00014,2]
[361366428,1747518646224,-1599.8699992,0.00014,2]
[361367203,1747518779228,-200.0,0.000135,4]
[361367204,1747518779250,-112.24269073,0.000136,4]
[361367205,1747518783910,-290.29470268,0.000136,4]
[361367206,1747518786215,-97.46260659,0.000136,4]
[361367207,1747519034147,-164.26076236,0.000137,5]
[361367208,1747519036286,-285.73923764,0.000137,5]
[361367210,1747519692316,158.62,0.00026668,120]
[361367223,1747519832148,-189.68,0.00013699,2]
[361367225,1747519832159,-181.528,0.0001372,2]
[361367226,1747519832169,-26.84486501,0.0001372,2]
[361367227,1747519832182,-567.02785561,0.0001372,2]
[361367228,1747519832194,-1072.83627938,0.0001372,2]
[361367229,1747519832205,-265.0,0.00013899,2]
[361367230,1747519832215,-81.58212541,0.00013899,2]
[361367231,1747519832227,-218.41787459,0.00013899,2]
[361367232,1747519832236,-178.15918206,0.000139,2]
[361367233,1747519832247,-179.87312755,0.000139,2]
[361367234,1747519832258,-166.99598239,0.000139,2]
[361367235,1747519832269,-352.69984786,0.000139,2]
[361367236,1747519832283,-5043.40180296,0.000139,2]
[361367237,1747519832320,-2191.754264,0.000139,2]
[361367238,1747519832332,-10491.2953151,0.000139,2]
[361367239,1747519832377,-5933.588277,0.000139,2]
[361367240,1747519832388,-1047.85311258,0.000139,2]
[361367241,1747519832399,-1100.0,0.000139,2]
[361367242,1747519832411,-2218.76492428,0.000139,2]
[361367243,1747519832422,-840.0,0.000139,2]
[361367244,1747519832446,-4436.06303229,0.000139,2]
[361367245,1747519832457,-320.29041264,0.000139,2]
[361367781,1747519838224,-546.177327,0.000139,2]
[361367792,1747519838335,-8426.83231879,0.000139,2]
[361367981,1747519840223,-2089.087,0.000139,2]
[361367983,1747519840236,-291.48,0.000139,2]
[361367986,1747519840247,-414.87136662,0.000139,2]
[361367991,1747519840285,-322.54179362,0.000139,2]
[361368004,1747519840400,-2410.0718736,0.000139,2]
[361368006,1747519840410,-196.88290931,0.000139,2]
[361368008,1747519840420,-500.0,0.00013999,2]
[361368010,1747519840430,-500.0,0.00013999,2]
[361368012,1747519840440,-500.0,0.00013999,2]
[361368015,1747519840450,-500.0,0.00013999,2]
[361368017,1747519840460,-500.0,0.00013999,2]
[361368019,1747519840470,-500.0,0.00013999,2]
[361368021,1747519840481,-500.0,0.00013999,2]
[361368023,1747519840491,-500.0,0.00013999,2]
[361368025,1747519840500,-500.0,0.00013999,2]
[361368027,1747519840510,-342.77944031,0.00013999,2]
[361368029,1747519840519,-500.0,0.00013999,2]
[361368031,1747519840530,-500.0,0.00013999,2]
[361368033,1747519840539,-500.0,0.00013999,2]
[361368035,1747519840548,-500.0,0.00013999,2]
[361368037,1747519840557,-500.0,0.00013999,2]
[361368039,1747519840567,-500.0,0.00013999,2]
[361368041,1747519840577,-500.0,0.00013999,2]
[361368043,1747519840586,-280.0057289,0.00013999,2]
[361368045,1747519840595,-500.0,0.00013999,2]
[361368047,1747519840606,-500.0,0.00013999,2]
[361368049,1747519840615,-500.0,0.00013999,2]
[361368051,1747519840624,-500.0,0.00013999,2]
[361368053,1747519840633,-500.0,0.00013999,2]
[361368055,1747519840642,-500.0,0.00013999,2]
[361368057,1747519840651,-499.99999999,0.00013999,2]
[361368059,1747519840660,-500.0,0.00013999,2]
[361368061,1747519840669,-500.0,0.00013999,2]
[361368063,1747519840681,-370.92376245,0.00013999,2]
[361368065,1747519840692,-254.11824423,0.00014,2]
[361368067,1747519840700,-2749583.01720223,0.00014,2]
[361368070,1747519840712,-4175.6,0.00014,2]
[361368072,1747519840723,-1598.57692728,0.00014,2]
[361368377,1747519843548,-159.97,0.0001399,2]
[361368379,1747519843558,-159.97,0.0001399,2]
[361368381,1747519843567,-159.97,0.0001399,2]
[361368383,1747519843576,-159.97,0.0001399,2]
[361368385,1747519843585,-159.97,0.0001399,2]
[361368387,1747519843595,-159.97,0.0001399,2]
[361368390,1747519843604,-159.97,0.0001399,2]
[361368393,1747519843613,-18175.41,0.00014,2]
[361368395,1747519843624,-3602.0,0.00014,2]
[361368694,1747519846315,-159.97,0.0001399,2]
[361368696,1747519846325,-159.97,0.0001399,2]
[361368698,1747519846335,-159.97,0.0001399,2]
[361368700,1747519846344,-698.690015,0.00014,2]
[361368711,1747519846430,-8292.93785819,0.00014,2]
[361368718,1747519846491,-5157.5,0.00014,2]
[361369693,1747519874118,-174.2471364,0.000136,4]
[361369694,1747519875671,-25.7528636,0.000136,4]
[361369712,1747521032304,-1333.368,0.0001372,2]
[361369713,1747521032313,-200.0,0.0001375,2]
[361369714,1747521032323,-179.87312755,0.000139,2]
[361369715,1747521032331,-172.27254569,0.000139,2]
[361369716,1747521032340,-286.9636871,0.000139,2]
[361369717,1747521032349,-186.45876469,0.000139,2]
[361369718,1747521032358,-172.27254563,0.00013938,2]
[361369719,1747521032367,-252.59642261,0.00013972,2]
[361369720,1747521032378,-47.40357739,0.00013972,2]
[361369721,1747521032387,-500.0,0.00013973,2]
[361369722,1747521032396,-505.279035,0.00013973,2]
[361369723,1747521032404,-30.87108761,0.00013973,2]
[361369724,1747521032416,-469.12891239,0.00013973,2]
[361369725,1747521032425,-298.97938628,0.00013973,2]
[361369726,1747521032436,-162.50737961,0.00013973,2]
[361369727,1747521032445,-500.0,0.00013973,2]
[361369728,1747521032454,-500.0,0.00013973,2]
[361369729,1747521032462,-500.0,0.00013973,2]
[361369730,1747521032471,-500.0,0.00013973,2]
[361369731,1747521032481,-172.27254563,0.00013975,2]
[361369732,1747521032489,-159.97,0.0001399,2]
[361369733,1747521032498,-58.58008393,0.0001399,2]
[361369734,1747521032509,-101.38991607,0.0001399,2]
[361369735,1747521032518,-159.97,0.0001399,2]
[361369736,1747521032527,-126.64892144,0.0001399,2]
[361369737,1747521032539,-33.32107856,0.0001399,2]
[361369738,1747521032548,-159.97,0.0001399,2]
[361369739,1747521032558,-150.0,0.00013998,2]
[361369740,1747521032567,-150.0,0.00013999,2]
[361369741,1747521032576,-315.86438226,0.00013999,2]
[361369743,1747521032586,-181.45898956,0.00013999,2]
[361369745,1747521032595,-500.0,0.00013999,2]
[361369746,1747521032604,-500.0,0.00013999,2]
[361369747,1747521032614,-500.0,0.00013999,2]
[361369748,1747521032623,-500.0,0.00013999,2]
[361369749,1747521032632,-154.42904205,0.00013999,2]
[361369750,1747521032643,-345.57095795,0.00013999,2]
[361369751,1747521032653,-500.0,0.00013999,2]
[361369752,1747521032662,-500.0,0.00013999,2]
[361369753,1747521032671,-500.0,0.00013999,2]
[361369754,1747521032680,-107.15499492,0.00013999,2]
[361369755,1747521032692,-392.84500508,0.00013999,2]
[361369756,1747521032701,-500.0,0.00013999,2]
[361369757,1747521032711,-500.0,0.00013999,2]
[361369758,1747521032720,-500.0,0.00013999,2]
[361369759,1747521032730,-500.0,0.00013999,2]
[361369761,1747521032739,-500.0,0.00013999,2]
[361369763,1747521032749,-500.0,0.00013999,2]
[361369765,1747521032758,-500.0,0.00013999,2]
[361369767,1747521032766,-500.0,0.00013999,2]
[361369769,1747521032775,-82.02471362,0.00013999,2]
[361369771,1747521032787,-417.97528638,0.00013999,2]
[361369773,1747521032797,-180.22704411,0.00013999,2]
[361369776,1747521032808,-319.77295589,0.00013999,2]
[361369778,1747521032818,-500.0,0.00013999,2]
[361369779,1747521032827,-500.0,0.00013999,2]
[361369780,1747521032836,-500.0,0.00013999,2]
[361369781,1747521032845,-500.0,0.00013999,2]
[361369782,1747521032854,-500.0,0.00013999,2]
[361369783,1747521032863,-312.30516411,0.00013999,2]
[361369784,1747521032874,-187.69483589,0.00013999,2]
[361369785,1747521032884,-500.0,0.00013999,2]
[361369786,1747521032893,-500.0,0.00013999,2]
[361369787,1747521032902,-500.0,0.00013999,2]
[361369788,1747521032911,-314.95681395,0.00013999,2]
[361369789,1747521032923,-185.04318605,0.00013999,2]
[361369790,1747521032933,-389.38254603,0.00013999,2]
[361369791,1747521032944,-110.61745397,0.00013999,2]
[361369792,1747521032953,-500.0,0.00013999,2]
[361369793,1747521032962,-500.0,0.00013999,2]
[361369794,1747521032971,-500.0,0.00013999,2]
[361369795,1747521032982,-500.0,0.00013999,2]
[361369796,1747521032992,-500.0,0.00013999,2]
[361369797,1747521033001,-500.0,0.00013999,2]
[361369798,1747521033011,-500.0,0.00013999,2]
[361369799,1747521033020,-355.31061823,0.00013999,2]
[361369800,1747521033030,-500.0,0.00013999,2]
[361369801,1747521033039,-500.0,0.00013999,2]
[361369802,1747521033048,-500.0,0.00013999,2]
[361369803,1747521033058,-500.0,0.00013999,2]
[361369804,1747521033067,-500.0,0.00013999,2]
[361369805,1747521033077,-500.0,0.00013999,2]
[361369806,1747521033086,-500.0,0.00013999,2]
[361369807,1747521033095,-468.53233014,0.00014,2]
[361369808,1747521033104,-111378.01343206,0.00014,2]
[361369809,1747521033115,-48451.46790428,0.00014,2]
[361369810,1747521033126,-3827.40151439,0.00014,2]
[361369811,1747521033137,-7616.91171774,0.00014,2]
[361369812,1747521033148,-2967.66811576,0.00014,2]
[361369813,1747521038355,-258.97381624,0.00014,2]
[361369814,1747521038367,-4078.76718796,0.00014,2]
[361369815,1747521038378,-196221.15779763,0.00014,2]
[361369816,1747521038388,-125910.78195502,0.00014,2]
[361369817,1747521038399,-8412.02422004,0.00014,2]
[361369818,1747521038412,-1072.35,0.00014,2]
[361369819,1747521038423,-1030.0,0.00014,2]
[361369826,1747521040621,-21305.0017543,0.00014,2]
[361369827,1747521040632,-245446.45860192,0.00014,2]
[361369828,1747521040644,-2369838.16208035,0.00014,2]
[361369829,1747521040653,-379998.97336611,0.00014,2]
[361369840,1747521043455,-2023.68102258,0.00014,2]
[361369841,1747521043467,-201181.52198959,0.00014,2]
[361369842,1747521043478,-268.61,0.00014,2]
[361369843,1747521043594,-858.6849167,0.00014,2]
[361369844,1747521043606,-1189.34778732,0.00014,2]
[361369845,1747521043617,-14351.0,0.00014,2]
[361370073,1747521046294,-1245.69,0.00014,2]
[361370085,1747521046409,-771.55623,0.00014,2]
[361370088,1747521046424,-714.413271,0.00014,2]
[361370100,1747521046530,-107840.3379658,0.00014,2]
[361370103,1747521046547,-500.0,0.00014,2]
[361370110,1747521046609,-33490.21234996,0.00014,2]
[361370113,1747521046627,-330.3299999,0.00014,2]
[361370116,1747521046644,-466.05485796,0.00014,2]
[361370119,1747521046663,-428.89054298,0.00014,2]
[361370715,1747521052947,-389.93,0.00013438,2]
[361370925,1747521055447,-280.87178791,0.00013438,2]
[361370926,1747521058488,-169.12821209,0.00013438,2]
[361370927,1747521064043,-200.0,0.000133,4]
[361370928,1747521064065,-28.85556636,0.000134,4]
[361370929,1747521065527,-229.67875596,0.000134,4]
[361370930,1747521067783,-231.06477113,0.000134,4]
[361370931,1747521069887,-10.40090655,0.000134,4]
[361370932,1747521069910,-146.2220899,0.00013438,2]
[361370933,1747521072013,-153.7779101,0.00013438,2]
[361370934,1747521075617,-165.39,0.00013438,2]
[361370935,1747521077804,-187.876677,0.00013438,2]
[361370936,1747521079880,-171.80959781,0.00013438,2]
[361370937,1747521082623,-181.56026312,0.00013438,2]
[361370938,1747521084693,-249.89013907,0.00013438,2]
[361370939,1747521086848,-228.3816951,0.00013438,2]
[361370940,1747521091960,-192.37203665,0.00013438,2]
[361370941,1747521094024,-325.9720955,0.00013438,2]
[361370942,1747521095607,-251.98288294,0.00013438,2]
[361370944,1747521097966,-221.73714933,0.00013438,2]
[361370946,1747521099752,-257.39589505,0.00013438,2]
[361370947,1747521103297,-318.62013448,0.00013438,2]
[361370948,1747521105814,-212.6402944,0.00013438,2]
[361370949,1747521109519,-180.13597082,0.00013438,2]
[361370950,1747521110606,-214.44856175,0.00013438,2]
[361370951,1747521112619,-226.8154,0.00013438,2]
[361370952,1747521114191,-200.0,0.00013438,2]
[361370967,1747521758412,-350.0,0.0001326,2]
[361370968,1747521894425,-187.87947041,0.00012948,2]
[361370969,1747521896497,-62.12052959,0.00012948,2]
[361370971,1747522027822,150.0,0.00013073,7]
[361370972,1747522097602,-150.0,0.00013016,2]
[361370973,1747522118275,150.0,0.000135,5]
[361370989,1747522231456,-739.489561,0.00013039,2]
[361370990,1747522231468,-3272.790439,0.00013039,2]
[361370991,1747522231478,-200.0,0.00013062,2]
[361370992,1747522231488,-1093.97431853,0.00013084,2]
[361370993,1747522231502,-194.79568147,0.00013084,2]
[361370994,1747522231512,-158.62,0.00013085,2]
[361370995,1747522231521,-159.51,0.00013086,2]
[361370996,1747522231531,-200.0,0.00013101,2]
[361370997,1747522231540,-1000.0,0.00013145,2]
[361370998,1747522231550,-250.0,0.00013149,2]
[361370999,1747522231559,-1200.0,0.00013259,2]
[361371000,1747522231568,-960.16,0.0001326,2]
[361371001,1747522231577,-300.0,0.00013355,2]
[361371002,1747522231586,-3781.87390799,0.00013356,2]
[361371003,1747522231597,-1050.0,0.00013356,2]
[361371004,1747522231607,-1578.04109096,0.00013356,2]
[361371005,1747522231618,-17490.08500105,0.00013356,2]
[361371006,1747522231627,-626.93593664,0.00013373,2]
[361371007,1747522231636,-500.0,0.00013373,2]
[361371008,1747522231646,-500.0,0.00013373,2]
[361371009,1747522231658,-500.0,0.00013373,2]
[361371010,1747522231668,-500.0,0.00013373,2]
[361371011,1747522231679,-500.0,0.00013373,2]
[361371012,1747522231688,-3730.3907642,0.00013438,2]
[361371013,1747522231698,-200.0,0.00013591,2]
[361371014,1747522231707,-180.19,0.00013699,2]
[361371015,1747522231716,-1414.88,0.00013791,2]
[361371016,1747522231727,-1617.7405,0.000139,2]
[361371017,1747522231736,-226.8154,0.000139,2]
[361371018,1747522231745,-179.87312755,0.000139,2]
[361371019,1747522231755,-153.69382812,0.000139,2]